bitfinex-derivatives/quotes_BTCF0:USTF0_20251025
["timestamp","ask_amount","ask_price","bid_price","bid_amount"]
[1761397667784,0.42050803,111850.0,111840.0,0.64732546]
[1761397668581,0.42050803,111850.0,111840.0,0.08184]
[1761397668582,0.54126679,111850.0,111840.0,0.08184]
[1761397668883,0.65005593,111850.0,111840.0,0.025]
[1761397669190,0.61893112,111850.0,111840.0,0.025]
[1761397669577,0.61893112,111850.0,111820.0,0.28274763]
[1761397669777,0.13815507,111840.0,111830.0,0.44479783]
[1761397670077,0.1582231,111840.0,111830.0,0.44479783]
[1761397670282,0.1822231,111840.0,111830.0,0.10722]
[1761397670870,0.15114803,111840.0,111830.0,0.10722]
[1761397671077,0.1832231,111840.0,111830.0,0.11022]
[1761397672284,0.10714803,111840.0,111830.0,0.28574763]
[1761397673284,0.10714803,111840.0,111830.0,0.14587]
[1761397673485,0.13714803,111840.0,111830.0,0.14587]
[1761397673687,0.13714803,111840.0,111830.0,0.28574763]
[1761397674377,0.13714803,111840.0,111830.0,0.14587]
[1761397674586,0.13714803,111840.0,111830.0,0.28574763]
[1761397676685,0.45158803,111840.0,111830.0,0.28574763]
[1761397676886,0.13714803,111840.0,111830.0,0.28574763]
[1761397677084,0.45158803,111840.0,111830.0,0.28574763]
[1761397677282,0.13714803,111840.0,111830.0,0.28574763]
[1761397677581,0.45070803,111840.0,111830.0,0.28574763]
[1761397677782,0.44931969,111840.0,111830.0,0.28574763]
[1761397678187,0.13575969,111840.0,111830.0,0.28574763]
[1761397678388,0.45019969,111840.0,111830.0,0.28574763]
[1761397678779,0.45019969,111840.0,111830.0,0.62332546]
[1761397680283,0.13575969,111840.0,111830.0,0.62332546]
[1761397680488,0.00106803,111840.0,111830.0,0.62332546]
[1761397680688,0.31550803,111840.0,111830.0,0.62332546]
[1761397681387,0.00106803,111840.0,111830.0,0.62332546]
[1761397683094,0.09571803,111840.0,111830.0,0.62332546]
[1761397686004,0.00106803,111840.0,111830.0,0.62332546]
[1761397696796,0.00106803,111840.0,111830.0,0.28574763]
[1761397697111,0.04941803,111840.0,111830.0,0.28574763]
[1761397697809,0.09571803,111840.0,111830.0,0.62332546]
[1761397698401,0.11984187,111840.0,111830.0,0.62332546]
[1761397699311,0.15199921,111840.0,111830.0,0.62332546]
[1761397702318,0.17611138,111840.0,111830.0,0.62332546]
[1761397709123,0.14395404,111840.0,111830.0,0.62332546]
[1761397709426,0.45843404,111840.0,111830.0,0.62332546]
[1761397712326,0.44240032,111840.0,111830.0,0.64741783]
[1761397713018,0.49063633,111840.0,111830.0,0.62332546]
[1761397718223,0.49063633,111840.0,111830.0,0.28574763]
[1761397718427,0.49063633,111840.0,111830.0,0.62332546]
[1761397721123,0.44240032,111840.0,111830.0,0.64741783]
[1761397722728,0.44240032,111840.0,111830.0,0.66502105]
[1761397730039,0.39610032,111840.0,111830.0,0.66502105]
[1761397734339,0.44148032,111840.0,111830.0,0.66502105]
[1761397739146,0.44148032,111840.0,111830.0,0.32744322]
[1761397739338,0.44148032,111840.0,111830.0,0.66502105]
[1761397742447,0.44148032,111840.0,111830.0,0.32744322]
[1761397742645,0.44148032,111840.0,111830.0,0.66502105]
[1761397744545,0.48971633,111840.0,111830.0,0.66502105]
[1761397744745,0.48971633,111840.0,111830.0,0.32744322]
[1761397745649,0.48971633,111840.0,111830.0,0.66502105]
[1761397746150,0.48971633,111840.0,111830.0,0.8225019]
[1761397750550,0.34771032,111840.0,111830.0,0.8225019]
[1761397760769,0.38679032,111840.0,111830.0,0.8225019]
[1761397761468,0.42838032,111840.0,111830.0,0.8225019]
[1761397761667,0.42838032,111840.0,111830.0,0.66502105]
[1761397761869,0.42838032,111840.0,111830.0,0.64092868]
[1761397762370,0.42838032,111840.0,111830.0,0.66502105]
[1761397762371,0.4525234,111840.0,111830.0,0.66502105]
[1761397763161,0.4525234,111840.0,111830.0,0.8225019]
[1761397763362,0.4525234,111840.0,111830.0,0.66502105]
[1761397763567,0.4525234,111840.0,111830.0,0.8225019]
[1761397769267,0.45252457,111840.0,111830.0,0.8225019]
[1761397773474,0.13808457,111840.0,111830.0,0.8225019]
[1761397773677,0.45248457,111840.0,111830.0,0.8225019]
[1761397774572,0.09649457,111840.0,111830.0,0.8225019]
[1761397774776,0.37181457,111840.0,111830.0,0.8225019]
[1761397775675,0.33961228,111840.0,111830.0,0.8225019]
[1761397776876,0.37413228,111840.0,111830.0,0.8225019]
[1761397777371,0.33961228,111840.0,111830.0,0.79840953]
[1761397777574,0.33961228,111840.0,111830.0,0.8305327]
[1761397777971,0.37413228,111840.0,111830.0,0.8305327]
[1761397780271,0.33961228,111840.0,111830.0,0.8305327]
[1761397782281,0.33961404,111840.0,111830.0,0.8305327]
[1761397782683,0.33961404,111840.0,111830.0,0.65552264]
[1761397783183,0.33957404,111840.0,111830.0,0.65552264]
[1761397783684,0.02521404,111840.0,111830.0,0.65552264]
[1761397783883,0.33957404,111840.0,111830.0,0.65552264]
[1761397784383,0.33957404,111840.0,111830.0,0.64751819]
[1761397784584,0.33957404,111840.0,111830.0,0.67964136]
[1761397785187,0.02521404,111840.0,111830.0,0.9090048]
[1761397785483,0.00106803,111840.0,111830.0,0.93307083]
[1761397785683,0.02414601,111850.0,111840.0,0.09439]
[1761397785880,0.02414601,111850.0,111840.0,0.73598181]
[1761397786782,0.02414601,111850.0,111840.0,1.17186888]
[1761397787084,0.3707083,111860.0,111850.0,0.09439]
[1761397787281,0.33850601,111860.0,111850.0,0.5960062]
[1761397788281,0.33850601,111860.0,111850.0,0.5990062]
[1761397789388,0.09283601,111870.0,111860.0,0.09439]
[1761397789589,0.09283601,111870.0,111860.0,0.57191947]
[1761397791279,0.09283601,111870.0,111860.0,0.58080068]
[1761397791475,0.09383601,111870.0,111860.0,0.58080068]
[1761397792385,0.1260383,111870.0,111860.0,0.58080068]
[1761397793683,0.09383601,111870.0,111860.0,0.58080068]
[1761397801291,0.09383601,111870.0,111860.0,0.44084904]
[1761397801592,0.09383601,111870.0,111860.0,0.58080068]
[1761397802396,0.06969,111870.0,111860.0,0.58080068]
[1761397806594,0.09383601,111870.0,111860.0,0.58080068]
[1761397809902,0.05966601,111870.0,111860.0,0.58080068]
[1761397810400,0.02514601,111870.0,111860.0,0.58080068]
[1761397811399,0.001,111870.0,111860.0,0.89504068]
[1761397811603,0.001,111870.0,111860.0,0.91912741]
[1761397813504,0.0869683,111880.0,111870.0,0.08439]
[1761397813798,0.0869683,111880.0,111870.0,0.56191947]
[1761397815099,0.06282229,111880.0,111870.0,0.56191947]
[1761397815805,0.06382229,111880.0,111870.0,0.56191947]
[1761397816402,0.09444229,111880.0,111870.0,0.56191947]
[1761397816709,0.10444229,111880.0,111870.0,0.57507488]
[1761397817611,0.10344229,111880.0,111870.0,0.57507488]
[1761397818015,0.10344229,111880.0,111870.0,0.23749705]
[1761397818216,0.10444229,111880.0,111870.0,0.23749705]
[1761397819414,0.10444229,111880.0,111870.0,0.09754541]
[1761397819619,0.10981229,111880.0,111870.0,0.07841541]
[1761397819817,0.26579765,111880.0,111870.0,0.07841541]
[1761397820014,0.12584601,111880.0,111870.0,0.07841541]
[1761397820320,0.72584601,111880.0,111870.0,0.07841541]
[1761397820618,0.72584601,111880.0,111870.0,0.04473541]
[1761397823424,0.72584601,111880.0,111870.0,0.01315541]
[1761397824925,0.72584601,111880.0,111870.0,0.01315775]
[1761397828533,0.67761,111880.0,111870.0,0.01315775]
[1761397828925,0.67761,111880.0,111870.0,0.04473775]
[1761397829230,0.67761,111880.0,111870.0,0.01315775]
[1761397829426,0.67761,111880.0,111870.0,0.04473775]
[1761397829631,0.67761,111880.0,111870.0,0.07841775]
[1761397831531,0.67761,111880.0,111870.0,0.01315775]
[1761397831932,0.67761,111880.0,111870.0,0.04473775]
[1761397832432,0.72583286,111880.0,111870.0,0.04473775]
[1761397833127,0.72583286,111880.0,111870.0,0.04125775]
[1761397833326,0.72583286,111880.0,111870.0,0.01315775]
[1761397835336,0.72583286,111880.0,111870.0,0.04125775]
[1761397835734,0.72583286,111880.0,111870.0,0.07032775]
[1761397836034,1.03466286,111880.0,111870.0,0.08940775]
[1761397836230,1.06680843,111880.0,111870.0,0.08940775]
[1761397837234,1.03466286,111880.0,111870.0,0.08940775]
[1761397837535,1.01858457,111880.0,111870.0,0.08940775]
[1761397837736,1.03466286,111880.0,111870.0,0.08940775]
[1761397837927,1.01858457,111880.0,111870.0,0.08940775]
[1761397838437,1.03466286,111880.0,111870.0,0.08940775]
[1761397839637,1.01858425,111880.0,111870.0,0.08940775]
[1761397840025,1.06680711,111880.0,111870.0,0.08940775]
[1761397840738,1.06680711,111880.0,111870.0,0.07625]
[1761397840940,1.03466286,111880.0,111870.0,0.08940065]
[1761397841826,1.01858415,111880.0,111870.0,0.08940065]
[1761397842031,1.03466286,111880.0,111870.0,0.08940065]
[1761397842426,0.98644,111880.0,111870.0,0.08940065]
[1761397842632,1.03465932,111880.0,111870.0,0.01315065]
[1761397842934,1.19208903,111880.0,111870.0,0.01315065]
[1761397844142,1.19208903,111880.0,111870.0,0.04125065]
[1761397846436,1.19208903,111880.0,111870.0,0.01315065]
[1761397847233,1.19208903,111880.0,111870.0,0.04125065]
[1761397848540,1.19208903,111880.0,111870.0,0.01315065]
[1761397849336,1.19208903,111880.0,111870.0,0.04125065]
[1761397850738,1.14386971,111880.0,111870.0,0.04125065]
[1761397851545,1.14386971,111880.0,111870.0,0.04120037]
[1761397852047,1.2081844,111880.0,111870.0,0.04120037]
[1761397852545,1.14386971,111880.0,111870.0,0.04120037]
[1761397852844,1.2081844,111880.0,111870.0,0.04120037]
[1761397856249,1.14386971,111880.0,111870.0,0.04120037]
[1761397856841,1.14386971,111880.0,111870.0,0.04119988]
[1761397858753,1.14386971,111880.0,111870.0,0.07026988]
[1761397859450,1.19216259,111880.0,111870.0,0.22769959]
[1761397859833,1.19216259,111880.0,111870.0,0.24423959]
[1761397860652,1.19216259,111880.0,111870.0,0.08680988]
[1761397860946,1.19216259,111880.0,111870.0,0.24423959]
[1761397866050,1.18004056,111880.0,111870.0,0.23211756]
[1761397866242,1.18004056,111880.0,111870.0,0.08680988]
[1761397868854,1.18004056,111880.0,111870.0,0.23211756]
[1761397870657,1.13174768,111880.0,111870.0,0.23211756]
[1761397872759,1.19606237,111880.0,111870.0,0.23211756]
[1761397876363,1.19606237,111880.0,111870.0,0.23211736]
[1761397876862,0.59606237,111880.0,111870.0,0.23211736]
[1761397881765,1.19606237,111880.0,111870.0,0.23211736]
[1761397882667,1.13174768,111880.0,111870.0,0.23211736]
[1761397885668,1.19606237,111880.0,111870.0,0.23211736]
[1761397891669,1.19606237,111880.0,111870.0,0.56969519]
[1761397891864,1.19606237,111880.0,111870.0,0.42438751]
[1761397892062,1.37606237,111880.0,111870.0,0.35067751]
[1761397892465,1.37606237,111880.0,111870.0,0.01309968]
[1761397892669,1.37606237,111880.0,111870.0,0.35067751]
[1761397893064,1.33075469,111880.0,111870.0,0.35067751]
[1761397893264,1.47606237,111880.0,111870.0,0.35067751]
[1761397893672,1.33075469,111880.0,111870.0,0.35067751]
[1761397893871,1.47606237,111880.0,111870.0,0.35067751]
[1761397894167,1.33075469,111880.0,111870.0,0.35067751]
[1761397894377,1.47606237,111880.0,111870.0,0.35067751]
[1761397896778,1.47606237,111880.0,111870.0,0.37403751]
[1761397899977,1.49606237,111880.0,111870.0,0.37403751]
[1761397900478,1.43174768,111880.0,111870.0,0.39690751]
[1761397902380,1.41174768,111880.0,111870.0,0.39690751]
[1761397902782,1.47606237,111880.0,111870.0,0.39690751]
[1761397902972,1.47606237,111880.0,111870.0,0.40040783]
[1761397903172,1.47606237,111880.0,111870.0,0.41344754]
[1761397903878,1.41174768,111880.0,111870.0,0.41344754]
[1761397904078,1.43174768,111880.0,111870.0,0.41344754]
[1761397904682,1.28644,111880.0,111870.0,0.41344754]
[1761397905981,1.26644,111880.0,111870.0,0.41344754]
[1761397906483,1.33075469,111880.0,111870.0,0.41344754]
[1761397907674,0.85993442,111880.0,111870.0,0.01303971]
[1761397907990,1.41993442,111880.0,111870.0,0.01303971]
[1761397908169,1.61993442,111880.0,111870.0,0.01303971]
[1761397908377,1.42993442,111880.0,111870.0,0.01303971]
[1761397908675,2.35561973,111880.0,111870.0,0.01303971]
[1761397909082,2.43601309,111880.0,111870.0,0.01303971]
[1761397909385,2.50555534,111880.0,111870.0,0.01303971]
[1761397909579,2.10561973,111880.0,111870.0,0.01303971]
[1761397909787,2.22561973,111880.0,111870.0,0.01303971]
[1761397910880,2.29747517,111880.0,111870.0,0.01303971]
[1761397911081,2.36179467,111880.0,111870.0,0.01303971]
[1761397911786,2.46173028,111880.0,111870.0,0.01303971]
[1761397912380,1.70741078,111880.0,111870.0,0.01303971]
[1761397912588,2.00741078,111880.0,111870.0,0.01303971]
[1761397912781,2.03741078,111880.0,111870.0,0.01303971]
[1761397913079,2.48741078,111880.0,111870.0,0.01303971]
[1761397913294,2.25741078,111880.0,111870.0,0.01303971]
[1761397913683,2.48741078,111880.0,111870.0,0.01303971]
[1761397914079,2.23741078,111880.0,111870.0,0.01303971]
[1761397914384,1.46829544,111880.0,111870.0,0.03639971]
[1761397914685,1.61747517,111880.0,111870.0,0.03639971]
[1761397920793,1.68179467,111880.0,111870.0,0.03639971]
[1761397921594,2.00179467,111880.0,111870.0,0.03639971]
[1761397922295,2.00179467,111880.0,111870.0,0.01303971]
[1761397922687,1.93747517,111880.0,111870.0,0.01303971]
[1761397922995,2.00179787,111880.0,111870.0,0.01303971]
[1761397923190,2.00179787,111880.0,111870.0,0.03543971]
[1761397925294,1.93747517,111880.0,111870.0,0.03543971]
[1761397926387,1.59747517,111880.0,111870.0,0.03543971]
[1761397926592,1.72747517,111880.0,111870.0,0.03543971]
[1761397927689,1.72747517,111880.0,111870.0,0.05671971]
[1761397927993,1.61747517,111880.0,111870.0,0.05671971]
[1761397928493,1.59747517,111880.0,111870.0,0.06956971]
[1761397928795,1.61747517,111880.0,111870.0,0.06956971]
[1761397932697,1.59747517,111880.0,111870.0,0.06956971]
[1761397932901,1.93747517,111880.0,111870.0,0.06956971]
[1761397933204,2.18747517,111880.0,111870.0,0.06956971]
[1761397933502,2.15747517,111880.0,111870.0,0.04854109]
[1761397933904,1.99741078,111880.0,111870.0,0.04854109]
[1761397934201,2.24741078,111880.0,111870.0,0.04854109]
[1761397934400,2.21183235,111880.0,111870.0,0.04854109]
[1761397934594,1.75183235,111880.0,111870.0,0.04854109]
[1761397936904,1.15183235,111880.0,111870.0,0.04854109]
[1761397937203,1.13183235,111880.0,111870.0,0.04854109]
[1761397937404,1.15183235,111880.0,111870.0,0.04854109]
[1761397937703,1.15183235,111880.0,111870.0,0.06982109]
[1761397938197,1.13183235,111880.0,111870.0,0.06982109]
[1761397938595,1.18183235,111880.0,111870.0,0.06982109]
[1761397938910,1.78183235,111880.0,111870.0,0.06982109]
[1761397939201,1.02253262,111880.0,111870.0,0.40739892]
[1761397940199,0.70845262,111880.0,111870.0,0.40739892]
[1761397940503,1.02253262,111880.0,111870.0,0.40739892]
[1761397940904,1.15171235,111880.0,111870.0,0.40739892]
[1761397942106,1.16774853,111880.0,111870.0,0.40739892]
[1761397942507,1.0385688,111880.0,111870.0,0.40739892]
[1761397943910,1.16774853,111880.0,111870.0,0.40739892]
[1761397944208,1.16774853,111880.0,111870.0,0.40713706]
[1761397944209,1.76774853,111880.0,111870.0,0.40713706]
[1761397945910,1.16774853,111880.0,111870.0,0.40713706]
[1761397947608,1.16774853,111880.0,111870.0,0.06955923]
[1761397947812,1.16774853,111880.0,111870.0,0.40713706]
[1761397950111,1.08735517,111880.0,111870.0,0.40713706]
[1761397950803,1.68735517,111880.0,111870.0,0.40713706]
[1761397951814,1.66735517,111880.0,111870.0,0.40713706]
[1761397952009,1.68735517,111880.0,111870.0,0.40713706]
[1761397954116,1.66735517,111880.0,111870.0,0.40713706]
[1761397954715,1.53817544,111880.0,111870.0,0.40713706]
[1761397956012,0.90257437,111880.0,111870.0,0.40713706]
[1761397958217,0.90257437,111880.0,111870.0,0.06955923]
[1761397958420,0.90257437,111880.0,111870.0,0.40713706]
[1761397962619,0.83817544,111880.0,111870.0,0.40713706]
[1761397965221,0.83817544,111880.0,111870.0,0.06955923]
[1761397965421,0.83817544,111880.0,111870.0,0.40713706]
[1761397965818,0.76632,111880.0,111870.0,0.40713706]
[1761397966721,0.9116322,111880.0,111870.0,0.39410783]
[1761397968426,0.97596672,111880.0,111870.0,0.39410783]
[1761397968924,0.94534672,111880.0,111870.0,0.39410783]
[1761397970122,0.94534672,111880.0,111870.0,0.53942003]
[1761397971531,0.80003452,111880.0,111870.0,0.53942003]
[1761397971726,0.94534672,111880.0,111870.0,0.53942003]
[1761397972525,0.8810122,111880.0,111870.0,0.53942003]
[1761397975225,0.7357,111880.0,111870.0,0.53942003]
[1761397975925,0.8810122,111880.0,111870.0,0.53942003]
[1761397976126,0.8810122,111880.0,111870.0,0.39410783]
[1761397976727,0.94534672,111880.0,111870.0,0.39410783]
[1761397977627,0.96534672,111880.0,111870.0,0.39410783]
[1761397977827,1.04534672,111880.0,111870.0,0.39410783]
[1761397978027,1.06534672,111880.0,111870.0,0.39410783]
[1761397980326,0.92003452,111880.0,111870.0,0.39410783]
[1761397980526,1.06534672,111880.0,111870.0,0.39410783]
[1761397982228,1.04534672,111880.0,111870.0,0.39410783]
[1761397986525,0.9810122,111880.0,111870.0,0.39410783]
[1761397987733,1.04538377,111880.0,111870.0,0.39410783]
[1761397990338,0.90007157,111880.0,111870.0,0.39410783]
[1761397990532,1.04538377,111880.0,111870.0,0.39410783]
[1761397997552,0.9810122,111880.0,111870.0,0.39410783]
[1761397998541,1.04539737,111880.0,111870.0,0.39410783]
[1761397998740,0.9810122,111880.0,111870.0,0.39410783]
[1761398003648,1.1463244,111880.0,111870.0,0.33757783]
[1761398003950,1.87071626,111880.0,111870.0,0.33757783]
[1761398004152,2.05071626,111880.0,111870.0,0.33757783]
[1761398004350,2.09071626,111880.0,111870.0,0.33757783]
[1761398004553,1.94540406,111880.0,111870.0,0.33757783]
[1761398004847,1.84540406,111880.0,111870.0,0.33757783]
[1761398005054,1.61540406,111880.0,111870.0,0.33757783]
[1761398005651,1.61540406,111880.0,111870.0,0.35878783]
[1761398006452,1.68648748,111880.0,111870.0,0.35878783]
[1761398007049,1.34648748,111880.0,111870.0,0.35878783]
[1761398007256,1.71648748,111880.0,111870.0,0.35878783]
[1761398008154,1.88648748,111880.0,111870.0,0.35878783]
[1761398010052,2.10179968,111880.0,111870.0,0.35878783]
[1761398010657,2.36179968,111880.0,111870.0,0.35878783]
[1761398011057,2.21648748,111880.0,111870.0,0.35878783]
[1761398011259,1.95648748,111880.0,111870.0,0.35878783]
[1761398011557,2.10179968,111880.0,111870.0,0.35878783]
[1761398011854,2.03740782,111880.0,111870.0,0.39428783]
[1761398012447,2.03740782,111880.0,111870.0,0.05671]
[1761398012646,2.03740782,111880.0,111870.0,0.39428783]
[1761398012647,2.11780118,111880.0,111870.0,0.39428783]
[1761398013250,1.51780118,111880.0,111870.0,0.35056783]
[1761398013456,2.10780118,111880.0,111860.0,0.06037]
[1761398013651,0.3549999,111870.0,111860.0,0.39794783]
[1761398013856,0.4849999,111870.0,111860.0,0.39794783]
[1761398014963,0.5849999,111870.0,111860.0,0.39794783]
[1761398016766,0.5899999,111870.0,111860.0,0.39794783]
[1761398017465,0.5909999,111870.0,111860.0,0.39794783]
[1761398020268,0.3003755,111870.0,111860.0,0.39794783]
[1761398020473,0.9049199,111870.0,111860.0,0.39794783]
[1761398021173,0.8405444,111870.0,111860.0,0.39794783]
[1761398022673,0.90487841,111870.0,111860.0,0.39794783]
[1761398025175,0.8405444,111870.0,111860.0,0.39794783]
[1761398025573,1.41487682,111870.0,111860.0,0.39794783]
[1761398026279,1.3505444,111870.0,111860.0,0.39794783]
[1761398026780,0.8805444,111870.0,111860.0,0.39794783]
[1761398028783,0.71913373,111870.0,111860.0,0.39794783]
[1761398029280,0.69913373,111870.0,111860.0,0.39794783]
[1761398029480,0.71913373,111870.0,111860.0,0.39794783]
[1761398029978,1.31913373,111870.0,111860.0,0.03935]
[1761398030280,1.33906934,111870.0,111850.0,0.06748]
[1761398030479,0.19355304,111860.0,111850.0,0.40505783]
[1761398030673,0.29355304,111860.0,111850.0,0.40505783]
[1761398031680,0.39355304,111860.0,111850.0,0.40505783]
[1761398032083,0.35746982,111860.0,111850.0,0.40505783]
[1761398033082,0.36146982,111860.0,111850.0,0.40505783]
[1761398038389,0.36146982,111860.0,111850.0,0.06748]
[1761398038685,0.36146982,111860.0,111850.0,0.40505783]
[1761398039886,0.23225609,111860.0,111850.0,0.40505783]
[1761398040183,0.36146982,111860.0,111850.0,0.40505783]
[1761398042087,0.37755304,111860.0,111850.0,0.40505783]
[1761398043791,0.24833931,111860.0,111850.0,0.40505783]
[1761398043995,0.56225931,111860.0,111850.0,0.40505783]
[1761398044293,0.46225931,111860.0,111850.0,0.40505783]
[1761398045891,0.39792,111860.0,111850.0,0.40505783]
[1761398046687,0.39792,111860.0,111850.0,0.53427156]
[1761398046892,0.39792,111860.0,111850.0,0.40505783]
[1761398047093,0.39792,111860.0,111850.0,0.53427156]
[1761398047692,0.39792,111860.0,111850.0,0.40505783]
[1761398050193,0.39792,111860.0,111850.0,0.06748]
[1761398050392,0.39792,111860.0,111850.0,0.40505783]
[1761398052687,0.46225931,111860.0,111850.0,0.40505783]
[1761398052887,0.36620669,111860.0,111850.0,1.13427156]
[1761398053894,0.36620669,111860.0,111850.0,0.53427156]
[1761398057393,0.39837235,111860.0,111850.0,0.53427156]
[1761398058892,0.39837235,111860.0,111850.0,1.13427156]
[1761398059402,0.35008566,111860.0,111850.0,1.13427156]
[1761398059906,0.35008566,111860.0,111850.0,0.53427156]
[1761398060996,0.34708566,111860.0,111850.0,0.53427156]
[1761398061198,0.34704566,111860.0,111850.0,0.53427156]
[1761398062304,0.3711562,111860.0,111850.0,0.53427156]
[1761398062704,0.33899054,111860.0,111850.0,0.53427156]
[1761398064803,0.33899054,111860.0,111850.0,0.55839143]
[1761398066692,0.33899054,111860.0,111850.0,0.53427156]
[1761398069206,0.33899054,111860.0,111850.0,1.13427156]
[1761398070307,0.3701162,111870.0,111850.0,1.15839143]
[1761398070506,0.3701162,111870.0,111860.0,0.52338156]
[1761398071809,0.3731162,111870.0,111860.0,0.52338156]
[1761398072209,0.3741162,111870.0,111860.0,0.52338156]
[1761398073411,0.3731162,111870.0,111860.0,0.52338156]
[1761398073708,0.3741162,111870.0,111860.0,0.52338156]
[1761398079610,0.3741162,111870.0,111860.0,0.39416783]
[1761398079816,0.35000566,111870.0,111860.0,0.39416783]
[1761398083218,0.36000566,111870.0,111860.0,0.39416783]
[1761398085318,0.40829235,111870.0,111860.0,0.39416783]
[1761398086710,0.40829235,111870.0,111860.0,0.40721104]
[1761398088821,0.55360312,111870.0,111860.0,0.55252181]
[1761398089428,0.40829235,111870.0,111860.0,0.55252181]
[1761398091728,0.37612669,111870.0,111860.0,0.55252181]
[1761398092824,0.37612669,111870.0,111860.0,0.21494398]
[1761398093123,0.37612669,111870.0,111860.0,0.55252181]
[1761398097633,0.37612669,111870.0,111860.0,0.21494398]
[1761398101827,0.52143746,111870.0,111860.0,0.21494398]
[1761398102627,0.52143746,111870.0,111860.0,0.55252181]
[1761398103033,0.66674823,111870.0,111860.0,0.40721104]
[1761398103227,0.52143746,111870.0,111860.0,0.40721104]
[1761398103425,0.47315077,111870.0,111860.0,0.40721104]
[1761398104222,0.5214333,111870.0,111860.0,0.40721104]
[1761398107534,0.37612253,111870.0,111860.0,0.55252181]
[1761398107731,0.5214333,111870.0,111860.0,0.55252181]
[1761398110429,0.5214333,111870.0,111860.0,0.40721104]
[1761398112734,0.55361287,111870.0,111860.0,0.40721104]
[1761398114225,0.5214333,111870.0,111860.0,0.40721104]
[1761398116439,0.5536122,111870.0,111860.0,0.40721104]
[1761398116638,0.5536122,111870.0,111860.0,0.39416783]
[1761398119943,0.5536122,111870.0,111860.0,0.5394786]
[1761398120143,0.5214333,111870.0,111860.0,0.5394786]
[1761398120343,0.5214333,111870.0,111860.0,0.39416783]
[1761398120639,0.50533076,111870.0,111860.0,0.39416783]
[1761398122345,0.50533076,111870.0,111860.0,0.5394786]
[1761398123846,0.50533076,111870.0,111860.0,0.39416783]
[1761398124044,0.50533076,111870.0,111860.0,0.5394786]
[1761398131549,0.50533076,111870.0,111860.0,0.56359847]
[1761398135449,0.50533076,111870.0,111860.0,0.56359472]
[1761398137056,0.36001999,111870.0,111860.0,0.56359472]
[1761398138260,0.36001999,111870.0,111860.0,0.20190077]
[1761398138445,0.36001999,111870.0,111860.0,0.5394786]
[1761398139056,0.36001999,111870.0,111860.0,0.39416783]
[1761398139257,0.36001999,111870.0,111860.0,0.5394786]
[1761398140357,0.04617999,111870.0,111860.0,0.20190077]
[1761398140557,0.35993999,111870.0,111860.0,0.56359472]
[1761398141452,0.35993999,111870.0,111860.0,0.5394786]
[1761398142055,0.34993999,111870.0,111860.0,0.5394786]
[1761398142761,0.35093999,111870.0,111860.0,0.5394786]
[1761398144665,0.36704253,111870.0,111860.0,0.5394786]
[1761398145462,0.35094649,111870.0,111860.0,0.5394786]
[1761398148562,0.34994649,111870.0,111860.0,0.5394786]
[1761398148869,0.34694649,111870.0,111860.0,0.5394786]
[1761398150364,0.39522902,111870.0,111860.0,0.5394786]
[1761398150765,0.39522902,111870.0,111860.0,0.52330289]
[1761398152168,0.34694649,111870.0,111860.0,0.52330289]
[1761398153365,0.03318649,111870.0,111860.0,0.52330289]
[1761398154770,0.03318649,111870.0,111860.0,0.39416783]
[1761398155069,0.03318649,111870.0,111860.0,0.52330289]
[1761398155963,0.02512332,111870.0,111860.0,0.54741901]
[1761398162273,0.37002981,111880.0,111870.0,0.05731]
[1761398162573,0.33784332,111880.0,111870.0,0.52402289]
[1761398163565,0.34084332,111880.0,111870.0,0.52402289]
[1761398164074,0.34084332,111880.0,111870.0,0.54813901]
[1761398164371,0.34084332,111880.0,111870.0,0.52402289]
[1761398165168,0.03218649,111890.0,111880.0,0.01394]
[1761398165371,0.03218649,111890.0,111880.0,0.5328853]
[1761398166568,0.03718649,111890.0,111880.0,0.5328853]
[1761398166974,0.03718649,111890.0,111880.0,0.52402289]
[1761398168577,0.005,111890.0,111880.0,0.52402289]
[1761398168773,0.005,111890.0,111880.0,0.65315795]
[1761398169075,0.03218649,111910.0,111900.0,0.03593]
[1761398169279,0.20218649,111910.0,111900.0,0.52402289]
[1761398170179,0.03218649,111910.0,111900.0,0.52402289]
[1761398171179,0.006,111910.0,111900.0,0.52402289]
[1761398172580,0.03818649,111910.0,111900.0,0.52402289]
[1761398174182,0.006,111910.0,111900.0,0.52402289]
[1761398175279,0.31978649,111920.0,111910.0,0.03593]
[1761398175583,0.94894916,111920.0,111910.0,0.52402289]
[1761398176986,0.91676267,111920.0,111910.0,0.52402289]
[1761398177184,0.91676267,111920.0,111910.0,0.39488783]
[1761398177482,0.91676267,111920.0,111910.0,0.39588783]
[1761398178687,0.74676267,111920.0,111910.0,0.39588783]
[1761398178882,0.74676267,111920.0,111910.0,0.52502289]
[1761398179680,0.7376,111920.0,111910.0,0.52502289]
[1761398180587,0.7376,111920.0,111910.0,0.39588783]
[1761398182790,0.76978649,111920.0,111910.0,0.39588783]
[1761398183388,0.76978649,111920.0,111910.0,0.52502289]
[1761398185690,0.44978649,111920.0,111910.0,0.52502289]
[1761398185891,0.44978649,111920.0,111910.0,0.39588783]
[1761398186084,0.16218649,111920.0,111910.0,0.52502289]
[1761398186286,0.13,111920.0,111910.0,0.52502289]
[1761398186588,0.36188253,111950.0,111940.0,0.05731]
[1761398186890,0.9456598,111950.0,111940.0,0.52402289]
[1761398187479,0.9456598,111950.0,111940.0,0.39488783]
[1761398187990,0.9526598,111950.0,111940.0,0.39488783]
[1761398188292,0.9526598,111950.0,111940.0,0.52402289]
[1761398189192,0.7326598,111950.0,111940.0,0.52402289]
[1761398189494,0.8406,111950.0,111940.0,0.52402289]
[1761398190089,0.3206,111950.0,111940.0,0.52402289]
[1761398190294,1.06973506,111950.0,111930.0,0.05731]
[1761398190487,1.15007739,111950.0,111930.0,0.05731]
[1761398190794,0.0320598,111940.0,111930.0,0.05731]
[1761398190996,0.4020598,111940.0,111930.0,0.05731]
[1761398191194,0.2420598,111940.0,111920.0,0.05731]
[1761398191392,0.2420598,111940.0,111930.0,0.33757783]
[1761398191591,0.3458998,111940.0,111930.0,0.33757783]
[1761398191789,0.8358998,111940.0,111920.0,0.05731]
[1761398191988,0.8358998,111940.0,111930.0,0.39759783]
[1761398192394,0.8378998,111940.0,111930.0,0.06002]
[1761398196199,0.88618233,111940.0,111930.0,0.06002]
[1761398197316,1.48618233,111940.0,111930.0,0.06002]
[1761398198216,1.4862015,111940.0,111930.0,0.06002]
[1761398199213,1.58325759,111940.0,111930.0,0.06002]
[1761398199614,1.45412253,111940.0,111930.0,0.06002]
[1761398200112,1.45412253,111940.0,111930.0,0.03703]
[1761398200303,0.68325759,111940.0,111920.0,0.06016]
[1761398200508,1.09325759,111940.0,111930.0,0.33757783]
[1761398200811,1.56310383,111940.0,111910.0,0.01394]
[1761398201009,0.03208609,111920.0,111910.0,0.39773783]
[1761398201204,0.36588609,111920.0,111910.0,0.39773783]
[1761398201406,0.41401486,111920.0,111910.0,0.39773783]
[1761398202315,0.41401486,111920.0,111910.0,0.40073783]
[1761398202715,0.36588609,111920.0,111910.0,0.40073783]
[1761398205018,0.34588609,111920.0,111910.0,0.52987289]
[1761398205520,0.34588609,111920.0,111910.0,0.40073783]